fUST/lending_fUST_20240622
["ID","MTS","AMOUNT","RATE_DAILY","PERIOD"]
[330112067,1719000638433,-166.666666,0.00024482,2]
[330112068,1719000638443,-151.54773924,0.0002462,2]
[330112069,1719000638453,-500.0,0.00024698,2]
[330112070,1719000638463,-252.0,0.000247,2]
[330112071,1719000638473,-3000.0,0.000247,2]
[330112072,1719000638483,-3000.0,0.0002471,2]
[330112073,1719000638493,-3000.0,0.0002472,2]
[330112074,1719000638505,-500.0,0.0002472,2]
[330112075,1719000638515,-500.0,0.0002472,2]
[330112076,1719000638525,-500.0,0.0002472,2]
[330112077,1719000638535,-644.99999999,0.0002472,2]
[330112078,1719000638546,-226.6420363,0.0002472,2]
[330112079,1719000638558,-273.3579637,0.0002472,2]
[330112080,1719000638568,-500.0,0.0002472,2]
[330112081,1719000638577,-500.0,0.0002472,2]
[330112082,1719000638588,-181.53915781,0.00024726,2]
[330112083,1719000638598,-2956.65530031,0.00024726,2]
[330112084,1719000638610,-2276.19003484,0.00024726,2]
[330112085,1719000638620,-3000.0,0.0002473,2]
[330112086,1719000638630,-3000.0,0.0002474,2]
[330112087,1719000638640,-3000.0,0.0002475,2]
[330112088,1719000638650,-613.72355851,0.0002476,2]
[330112100,1719000641192,-2386.27644149,0.0002476,2]
[330112101,1719000641202,-153.0,0.00024767,2]
[330112102,1719000641212,-153.0,0.00024767,2]
[330112103,1719000641222,-153.0,0.00024767,2]
[330112104,1719000641231,-153.0,0.00024767,2]
[330112105,1719000641240,-153.0,0.00024767,2]
[330112106,1719000641251,-153.0,0.00024767,2]
[330112107,1719000641260,-153.0,0.00024767,2]
[330112108,1719000641270,-153.0,0.00024767,2]
[330112109,1719000641280,-153.0,0.00024767,2]
[330112110,1719000641289,-153.0,0.00024767,2]
[330112111,1719000641299,-153.0,0.00024767,2]
[330112112,1719000641309,-153.0,0.00024767,2]
[330112113,1719000641319,-153.0,0.00024767,2]
[330112114,1719000641328,-153.0,0.00024767,2]
[330112115,1719000641339,-153.0,0.00024767,2]
[330112116,1719000641348,-153.0,0.00024767,2]
[330112117,1719000641357,-153.0,0.00024767,2]
[330112118,1719000641367,-153.0,0.00024767,2]
[330112119,1719000641377,-153.0,0.00024767,2]
[330112120,1719000641386,-153.0,0.00024767,2]
[330112121,1719000641396,-3000.0,0.0002477,2]
[330112122,1719000641406,-3000.0,0.0002478,2]
[330112123,1719000641415,-3000.0,0.0002479,2]
[330112124,1719000641424,-3000.0,0.000248,2]
[330112125,1719000641435,-2000.0,0.000248,2]
[330112126,1719000641445,-3000.0,0.0002481,2]
[330112127,1719000641455,-3916.97,0.0002481,3]
[330112128,1719000641464,-5640.43,0.00024816,3]
[330112129,1719000641474,-4700.36,0.00024816,3]
[330112130,1719000641483,-3000.0,0.0002482,2]
[330112131,1719000641492,-18179.50669983,0.00024826,2]
[330112132,1719000641504,-24249.0613311,0.00024826,2]
[330112140,1719000643414,-405.0,0.00024719,2]
[330112142,1719000643424,-1365.1,0.00024826,2]
[330112167,1719000646515,-153.0,0.00024767,2]
[330112168,1719000646527,-27054.23664501,0.00024826,2]
[330112169,1719000646611,-53056.63500356,0.00024826,2]
[330112170,1719000646780,-3000.0,0.0002483,2]
[330112171,1719000646790,-3000.0,0.0002484,2]
[330112172,1719000646800,-3000.0,0.0002485,2]
[330112173,1719000646809,-3000.0,0.0002486,2]
[330112174,1719000646821,-3000.0,0.0002487,2]
[330112175,1719000646831,-3264.14,0.0002488,3]
[330112176,1719000646840,-3000.0,0.0002488,2]
[330112177,1719000646850,-3000.0,0.0002489,2]
[330112178,1719000646861,-3000.0,0.000249,2]
[330112179,1719000646871,-88888.0,0.000249,3]
[330112180,1719000646880,-155.69982,0.000249,7]
[330112181,1719000646890,-151.0,0.000249,7]
[330112182,1719000646899,-333.716017,0.000249,7]
[330112183,1719000646908,-210.779414,0.000249,7]
[330112184,1719000646918,-333.716017,0.000249,7]
[330112185,1719000646927,-151.0,0.000249,7]
[330112186,1719000646936,-151.0,0.000249,7]
[330112187,1719000646945,-194.888887,0.000249,7]
[330112188,1719000646955,-3000.0,0.0002491,2]
[330112189,1719000646964,-293.26648,0.0002492,7]
[330112190,1719000646973,-3000.0,0.0002492,2]
[330112191,1719000646982,-151.0,0.0002492,7]
[330112192,1719000646991,-151.0,0.0002492,7]
[330112193,1719000647001,-206.958691,0.0002492,7]
[330112194,1719000647013,-3000.0,0.0002493,2]
[330112195,1719000647022,-3000.0,0.0002494,2]
[330112196,1719000647031,-3000.0,0.0002495,2]
[330112197,1719000647041,-3000.0,0.0002496,2]
[330112198,1719000647050,-3000.0,0.0002497,2]
[330112199,1719000647059,-3000.0,0.0002498,2]
[330112200,1719000647069,-3000.0,0.0002499,2]
[330112201,1719000647079,-151.0,0.0002499,7]
[330112202,1719000647089,-151.0,0.0002499,7]
[330112203,1719000647098,-151.0,0.0002499,7]
[330112204,1719000647108,-333.716017,0.0002499,7]
[330112205,1719000647117,-333.716017,0.0002499,7]
[330112206,1719000647127,-151.0,0.0002499,7]
[330112207,1719000647136,-151.0,0.0002499,7]
[330112208,1719000647146,-194.888887,0.0002499,7]
[330112209,1719000647155,-1509.27488447,0.00025,31]
[330112210,1719000647164,-154.83742071,0.00025,2]
[330112211,1719000647173,-457.6583212,0.00025,2]
[330112212,1719000647182,-154.83742071,0.00025,2]
[330112213,1719000647191,-4168.00549882,0.00025,2]
[330112214,1719000647201,-1000.0,0.00025,25]
[330112215,1719000647210,-180.75,0.00025,2]
[330112216,1719000647219,-1847.66917466,0.00025,2]
[330112217,1719000647228,-795.13782706,0.00025,2]
[330112218,1719000647237,-3000.0,0.00025,2]
[330112219,1719000647247,-504.0,0.00025,2]
[330112220,1719000647257,-504.0,0.00025,2]
[330112221,1719000647266,-3000.0,0.0002501,2]
[330112222,1719000647275,-3000.0,0.0002502,2]
[330112223,1719000647284,-3000.0,0.0002503,2]
[330112224,1719000647293,-3000.0,0.0002504,2]
[330112225,1719000647302,-151.0,0.0002504,7]
[330112226,1719000647311,-333.716017,0.0002504,7]
[330112227,1719000647320,-333.716017,0.0002504,7]
[330112228,1719000647329,-151.0,0.0002504,7]
[330112229,1719000647338,-151.0,0.0002504,7]
[330112230,1719000647347,-194.888887,0.0002504,7]
[330112231,1719000647357,-3000.0,0.0002505,2]
[330112232,1719000647366,-151.0,0.0002505,7]
[330112233,1719000647375,-160.256295,0.0002505,7]
[330112234,1719000647385,-3000.0,0.0002506,2]
[330112235,1719000647394,-3000.0,0.0002507,2]
[330112236,1719000647404,-3000.0,0.0002508,2]
[330112237,1719000647413,-118835.95264011,0.0002509,2]
[330112238,1719000647423,-3000.0,0.0002509,2]
[330112239,1719000647432,-151.0,0.0002509,7]
[330112240,1719000647443,-151.0,0.0002509,7]
[330112241,1719000647453,-333.716017,0.0002509,7]
[330112242,1719000647463,-333.716017,0.0002509,7]
[330112243,1719000647473,-151.0,0.0002509,7]
[330112244,1719000647483,-151.0,0.0002509,7]
[330112245,1719000647492,-194.888887,0.0002509,7]
[330112246,1719000647501,-3000.0,0.000251,2]
[330112247,1719000647511,-3000.0,0.0002511,2]
[330112248,1719000647521,-3000.0,0.0002512,2]
[330112249,1719000647530,-3000.0,0.0002513,2]
[330112250,1719000647539,-11110.56607981,0.00025139,2]
[330112251,1719000647549,-3000.0,0.0002514,2]
[330112252,1719000647558,-3000.0,0.0002515,2]
[330112253,1719000647567,-151.0,0.00025159,7]
[330112254,1719000647577,-249.993785,0.00025159,7]
[330112255,1719000647586,-194.888887,0.00025159,7]
[330112256,1719000647595,-5769.947725,0.0002516,2]
[330112257,1719000647606,-151.0,0.00025315,7]
[330112258,1719000647615,-333.716017,0.00025315,7]
[330112259,1719000647624,-333.716017,0.00025315,7]
[330112260,1719000647634,-166.666666,0.00025425,2]
[330112261,1719000647643,-155.0,0.0002558,11]
[330112262,1719000647652,-153.0,0.00025589,2]
[330112263,1719000647661,-153.0,0.00025589,2]
[330112264,1719000647671,-153.0,0.00025589,2]
[330112265,1719000647680,-153.0,0.00025589,2]
[330112266,1719000647689,-153.0,0.00025589,2]
[330112267,1719000647698,-153.0,0.00025589,2]
[330112268,1719000647707,-153.0,0.00025589,2]
[330112269,1719000647717,-153.0,0.00025589,2]
[330112270,1719000647726,-153.0,0.00025589,2]
[330112271,1719000647735,-153.0,0.00025589,2]
[330112272,1719000647744,-153.0,0.00025589,2]
[330112273,1719000647754,-153.0,0.00025589,2]
[330112274,1719000647763,-153.0,0.00025589,2]
[330112275,1719000647772,-153.0,0.00025589,2]
[330112276,1719000647785,-306.0,0.00025589,2]
[330112277,1719000647794,-320.5229805,0.00025671,2]
[330112278,1719000647804,-883.5,0.00025769,4]
[330112279,1719000647813,-1752.0,0.00025817,2]
[330112280,1719000647823,-152.05863541,0.00026,2]
[330112281,1719000647832,-1000.0,0.00026,29]
[330112282,1719000647841,-5000.0,0.00026,35]
[330112283,1719000647850,-153.0,0.00026411,2]
[330112284,1719000647860,-153.0,0.00026411,2]
[330112285,1719000647868,-153.0,0.00026411,2]
[330112286,1719000647878,-153.0,0.00026411,2]
[330112287,1719000647887,-153.0,0.00026411,2]
[330112288,1719000647896,-205.5312875,0.00026411,2]
[330112289,1719000647904,-205.6831939,0.00026411,2]
[330112290,1719000647913,-205.6831939,0.00026411,2]
[330112291,1719000647922,-205.6831939,0.00026411,2]
[330112292,1719000647931,-205.6831939,0.00026411,2]
[330112293,1719000647940,-205.6831939,0.00026411,2]
[330112294,1719000647949,-205.6831939,0.00026411,2]
[330112295,1719000647959,-205.6831939,0.00026443,2]
[330112296,1719000647968,-205.6831939,0.00026443,2]
[330112297,1719000647977,-205.6831939,0.00026443,2]
[330112298,1719000647986,-3000.0,0.000265,2]
[330112299,1719000647995,-333.716017,0.000265,7]
[330112300,1719000648006,-333.716017,0.000265,7]
[330112301,1719000648016,-3000.0,0.0002651,2]
[330112302,1719000648025,-151.0,0.0002651,7]
[330112303,1719000648036,-194.888887,0.0002651,7]
[330112304,1719000648047,-3000.0,0.0002652,2]
[330112305,1719000648057,-3000.0,0.0002653,2]
[330112306,1719000648067,-151.0,0.00026539,7]
[330112307,1719000648077,-3000.0,0.0002654,2]
[330112308,1719000648088,-3000.0,0.0002655,2]
[330112309,1719000648098,-10558.24410271,0.00026559,2]
[330112310,1719000648107,-3000.0,0.0002656,2]
[330112311,1719000648116,-3000.0,0.0002657,2]
[330112312,1719000648125,-151.0,0.00026574,7]
[330112313,1719000648134,-194.888887,0.00026574,7]
[330112314,1719000648143,-3000.0,0.0002658,2]
[330112315,1719000648154,-333.716017,0.00026589,7]
[330112316,1719000648163,-333.716017,0.00026589,7]
[330112317,1719000648172,-3000.0,0.0002659,2]
[330112318,1719000648182,-20000.0,0.00026599,2]
[330112319,1719000648192,-20000.0,0.00026599,2]
[330112320,1719000648203,-151.0,0.00026599,7]
[330112321,1719000648212,-3000.0,0.000266,2]
[330112322,1719000648222,-3000.0,0.0002661,2]
[330112323,1719000648231,-3000.0,0.0002662,2]
[330112324,1719000648242,-151.0,0.0002662,7]
[330112325,1719000648251,-333.716017,0.00026629,7]
[330112326,1719000648261,-333.716017,0.00026629,7]
[330112327,1719000648270,-3000.0,0.0002663,2]
[330112328,1719000648279,-317.94108609,0.00026639,2]
[330112329,1719000648289,-154.80649189,0.00026639,2]
[330112330,1719000648300,-223.80311676,0.00026639,2]
[330112331,1719000648310,-3000.0,0.0002664,2]
[330112332,1719000648320,-2128.29563568,0.00026649,2]
[330112333,1719000648330,-1102.45850324,0.00026649,2]
[330112334,1719000648340,-155.38860571,0.00026649,2]
[330112335,1719000648349,-253.36995226,0.00026649,2]
[330112336,1719000648358,-175.89997227,0.00026649,2]
[330112337,1719000648368,-3000.0,0.0002665,2]
[330112338,1719000648377,-292.86437788,0.00026657,2]
[330112339,1719000648386,-516.57466289,0.00026657,2]
[330112340,1719000648396,-341.21988761,0.00026657,2]
[330112341,1719000648408,-878.16482601,0.00026657,2]
[330112342,1719000648418,-2567.74462911,0.00026658,2]
[330112343,1719000648429,-530.87340588,0.00026658,2]
[330112344,1719000648439,-2130.3064068,0.00026658,2]
[330112345,1719000648450,-159.95344407,0.00026658,2]
[330112346,1719000648459,-175.89997227,0.00026658,2]
[330112347,1719000648468,-154.9690062,0.00026658,2]
[330112348,1719000648479,-402.44339184,0.00026658,2]
[330112349,1719000648488,-687.40904727,0.00026658,2]
[330112350,1719000648499,-226.01923943,0.00026658,2]
[330112351,1719000648509,-7007.02448169,0.00026659,2]
[330112352,1719000648519,-2334.61575589,0.00026659,4]
[330112353,1719000648528,-151.0,0.00026659,7]
[330112354,1719000648537,-3000.0,0.0002666,2]
[330112355,1719000648547,-605.17031225,0.00026667,2]
[330112356,1719000648556,-154.80649189,0.00026667,2]
[330112357,1719000648565,-159.29148896,0.00026667,2]
[330112358,1719000648574,-373.45450727,0.00026668,2]
[330112359,1719000648583,-3000.0,0.0002667,2]
[330112360,1719000648593,-626.79430955,0.00026675,2]
[330112361,1719000648602,-167.35523192,0.00026675,2]
[330112362,1719000648612,-373.45450727,0.00026675,2]
[330112363,1719000648621,-4837.485,0.00026678,2]
[330112364,1719000648630,-333.716017,0.00026679,7]
[330112365,1719000648639,-333.716017,0.00026679,7]
[330112366,1719000648648,-3000.0,0.0002668,2]
[330112367,1719000648659,-151.0,0.0002668,7]
[330112368,1719000648668,-151.0,0.0002668,7]
[330112369,1719000648678,-2682.04172697,0.0002669,2]
[330112370,1719000648692,-317.95827303,0.0002669,2]
[330112371,1719000648701,-1092.00172697,0.000267,2]
[330112372,1719000648715,-525.4495035,0.000267,2]
[330112444,1719001834522,-209.0,0.00018186,2]
[330112446,1719001834532,-106.71,0.00018187,2]
[330112448,1719001834544,-3792.74837424,0.00018187,2]
[330112449,1719001834555,-1332.28760033,0.00018187,2]
[330112451,1719001834567,-1390.0,0.00018187,2]
[330112487,1719001839068,-593.64588048,0.00018187,2]
[330112552,1719001843606,-269.350406,0.00018187,2]
[330112837,1719002237924,164.15372263,0.00025,60]
[330112838,1719002241362,323.66188023,0.0001,2]
[330112839,1719002272732,1326.73841652,0.0001,2]
[330112862,1719002376764,155.0,0.00012121,2]
[330112875,1719002911993,-154.98450155,0.0001414,2]
[330112876,1719002912025,-216.38896321,0.00014641,2]
[330112877,1719002912055,-144.01075518,0.00014645,2]
[330113246,1719003038708,-154.79103211,0.00014643,2]
[330113248,1719003038718,-197.92483009,0.00014645,2]
[330113250,1719003038730,-10.77157945,0.00014645,2]
[330113252,1719003038739,-260.95601442,0.00014645,2]
[330113254,1719003038772,-160.63929877,0.00014645,2]
[330113256,1719003038781,-199.5832875,0.00015247,2]
[330113258,1719003038790,-300.0,0.0001609,2]
[330113259,1719003038803,-202.0,0.0001609,2]
[330113261,1719003038812,-24900.0,0.00016091,2]
[330113263,1719003038821,-1536.60268982,0.00017022,2]
[330113264,1719003038830,-261.417451,0.00017122,2]
[330113265,1719003038839,-251.0,0.00017699,2]
[330113266,1719003038848,-20000.0,0.00018077,2]
[330113267,1719003038857,-1076.70770081,0.00018083,2]
[330113268,1719003038866,-716.0158011,0.00018087,2]
[330113270,1719003038876,-155.01085076,0.00018187,2]
[330113271,1719003038885,-257.72394334,0.00018219,2]
[330113272,1719003038895,-150.0,0.000189,2]
[330113273,1719003038905,-626.79430955,0.00019177,2]
[330113274,1719003038915,-1536.60268975,0.00019981,2]
[330113275,1719003038924,-716.01580108,0.0002029,2]
[330113276,1719003038934,-810.75370085,0.00020404,2]
[330113277,1719003038943,-150.0,0.00020405,2]
[330113278,1719003038953,-1752.0,0.00020405,2]
[330113279,1719003038963,-750.0,0.00021096,2]
[330113280,1719003038972,-168.660891,0.00021179,2]
[330113281,1719003038982,-166.666666,0.00021918,2]
[330113282,1719003038996,-166.666666,0.00022431,2]
[330113283,1719003039007,-716.01580108,0.00022494,2]
[330113284,1719003039016,-401.52259031,0.00022609,2]
[330113285,1719003039025,-1536.60268975,0.0002294,2]
[330113286,1719003039034,-150.0,0.00023405,2]
[330113287,1719003039044,-1752.0,0.00023405,2]
[330113288,1719003039053,-500.0,0.00023726,7]
[330113289,1719003039062,-500.0,0.00023726,7]
[330113290,1719003039072,-500.0,0.00023726,7]
[330113291,1719003039082,-500.0,0.00023726,7]
[330113292,1719003039091,-500.0,0.00023726,7]
[330113293,1719003039099,-159.11,0.00023726,7]
[330113294,1719003039109,-154.80649189,0.00024,2]
[330113295,1719003039119,-716.01580108,0.00024697,2]
[330113296,1719003039129,-10558.24410271,0.00024759,2]
[330113297,1719003039139,-4837.485,0.00024825,2]
[330113298,1719003039148,-530.87340588,0.00024896,2]
[330113299,1719003039158,-180.0,0.00025,2]
[330113300,1719003039168,-130753.72750553,0.00025,2]
[330113365,1719004115716,-505.38563939,0.00014138,2]
[330113366,1719004115903,-505.38563939,0.00014138,2]
[330113367,1719004115949,-505.38563939,0.00014138,2]
[330113368,1719004140423,-535.70877775,0.00014136,2]
[330113369,1719004140486,-535.70877775,0.00014136,2]
[330113370,1719004140535,-149.90495069,0.00014136,2]
[330113375,1719004165516,-560.13522787,0.00014136,2]
[330113376,1719004165578,-560.13522787,0.00014136,2]
[330113377,1719004165722,-560.13522787,0.00014136,2]
[330113378,1719004190245,-593.74334155,0.00014136,2]
[330113379,1719004190295,-593.74334155,0.00014136,2]
[330113380,1719004190356,-264.35301812,0.00014136,2]
[330113405,1719004232175,-6204.67621169,0.00014136,2]
[330113406,1719004232185,-530.87340588,0.00014136,2]
[330113407,1719004232195,-769.80047841,0.00014136,2]
[330113408,1719004232205,-154.83741375,0.00014138,2]
[330113409,1719004232215,-626.79430955,0.00014138,2]
[330113410,1719004232224,-267.91803694,0.0001414,7]
[330113411,1719004232233,-267.91803694,0.0001414,7]
[330113412,1719004232242,-401.52259031,0.0001414,2]
[330113413,1719004232251,-166.56944949,0.00014145,2]
[330113414,1719004232260,-486.03934001,0.00017137,2]
[330113415,1719004232271,-480.80017026,0.00017137,2]
[330113416,1719004232282,-258.18004786,0.00017137,2]
[330113417,1719004232294,-677.48511014,0.00017137,2]
[330113418,1719004232303,-154.79103211,0.00017751,2]
[330113419,1719004232312,-168.660891,0.00019178,2]
[330113420,1719004232321,-1915.12915975,0.0002,2]
[330113421,1719004232332,-935.67306823,0.0002,2]
[330113422,1719004232343,-1986.68277202,0.0002,2]
[330113423,1719004232352,-809.37440685,0.0002,2]
[330113424,1719004232361,-1752.0,0.00020995,2]
[330113425,1719004232370,-150.0,0.00021086,2]
[330113426,1719004232379,-750.0,0.00021096,2]
[330113427,1719004232388,-261.417451,0.00021114,2]
[330113428,1719004232397,-2415.60465839,0.00021348,2]
[330113429,1719004232407,-500.0,0.00021348,2]
[330113430,1719004232416,-197.13958106,0.00021348,2]
[330113431,1719004232425,-500.0,0.00021348,2]
[330113432,1719004232434,-500.0,0.00021348,2]
[330113433,1719004232442,-500.0,0.00021348,2]
[330113434,1719004232452,-500.0,0.00021348,2]
[330113435,1719004232461,-1114.23146943,0.00021348,2]
[330113436,1719004232470,-10873.00596242,0.00021349,2]
[330113437,1719004232482,-636.9375,0.00021349,2]
[330113458,1719004237962,-24900.0,0.00017916,2]
[330113459,1719004237975,-960.37668112,0.00021617,2]
[330113460,1719004237985,-655.20954979,0.00021718,2]
[330113461,1719004237995,-166.666666,0.00021918,2]
[330113462,1719004238004,-166.666666,0.00022431,2]
[330113463,1719004238015,-878.16482601,0.00022499,2]
[330113464,1719004238024,-516.57466289,0.00022943,2]
[330113465,1719004238034,-516.57466289,0.00022943,2]
[330113466,1719004238044,-655.20954976,0.00022944,2]
[330113467,1719004238054,-166.666666,0.00022944,2]
[330113468,1719004238065,-490.07682753,0.00023455,2]
[330113469,1719004238074,-166.666666,0.00023456,2]
[330113470,1719004238084,-166.666666,0.00023969,2]
[330113471,1719004238093,-897.235,0.00023995,2]
[330113472,1719004238103,-2128.29563568,0.00024056,2]
[330113473,1719004238246,-960.37668109,0.00024057,2]
[330113474,1719004238256,-150.0,0.00024086,2]
[330113475,1719004238266,-655.20954976,0.00024169,2]
[330113476,1719004238276,-166.666666,0.00024482,2]
[330113477,1719004238285,-440.62915594,0.000245,2]
[330113478,1719004238295,-1500.0,0.0002456,2]
[330113479,1719004238304,-687.40904727,0.00024629,2]
[330113480,1719004238313,-5272.58203083,0.0002467,2]
[330113481,1719004238322,-1102.45850324,0.00024725,2]
[330113482,1719004238332,-1102.45850324,0.00024725,2]
[330113483,1719004238342,-205.6831939,0.000248,2]
[330113484,1719004238351,-205.6831939,0.000248,2]
[330113485,1719004238360,-205.6831939,0.000248,2]
[330113486,1719004238370,-205.6831939,0.000248,2]
[330113487,1719004238379,-205.6831939,0.000248,2]
[330113488,1719004238388,-205.6831939,0.000248,2]
[330113489,1719004238398,-205.6831939,0.000248,2]
[330113490,1719004238407,-205.6831939,0.000248,2]
[330113491,1719004238417,-205.6831939,0.000248,2]
[330113492,1719004238427,-205.6831939,0.000248,2]
[330113493,1719004238437,-205.6831939,0.000248,2]
[330113494,1719004238447,-205.6831939,0.000248,2]
[330113495,1719004238456,-205.6831939,0.000248,2]
[330113496,1719004238465,-205.6831939,0.000248,2]
[330113497,1719004238475,-205.6831939,0.000248,2]
[330113498,1719004238484,-205.6831939,0.000248,2]
[330113499,1719004238494,-205.6831939,0.000248,2]
[330113500,1719004238503,-359.9189086,0.000248,2]
[330113501,1719004238513,-33090.32123847,0.00025,2]
[330113502,1719004238522,-4168.00549882,0.00025,2]
[330113503,1719004238532,-181.53915781,0.00025,2]
[330113504,1719004238541,-192.54849878,0.00025,2]
[330113505,1719004238551,-457.6583212,0.00025,2]
[330113506,1719004238560,-273.0996642,0.00025395,2]
[330113507,1719004238572,-382.10988556,0.00025395,2]
[330113508,1719004238582,-166.666666,0.00025425,2]
[330113509,1719004238591,-153.0,0.00025479,2]
[330113510,1719004238600,-550.72929161,0.00025483,4]
[330113511,1719004238612,-259.17070839,0.00025483,4]
[330113512,1719004238622,-600.0,0.00025632,2]
[330113513,1719004238632,-600.0,0.00025899,2]
[330113514,1719004238641,-600.0,0.00026166,2]
[330113515,1719004238651,-2720.11,0.00026303,3]
[330113516,1719004238660,-2567.74462911,0.00026304,2]
[330113517,1719004238669,-492.77706679,0.00026312,2]
[330113518,1719004238679,-159.95344407,0.00026313,2]
[330113519,1719004238691,-5410.0388869,0.00026313,2]
[330113520,1719004238710,-14589.9611131,0.00026313,2]
[330113521,1719004238720,-12390.0712825,0.00026314,2]
[330113522,1719004238732,-1254.93748519,0.00026314,2]
[330113523,1719004238742,-800.92995936,0.00026315,2]
[330113524,1719004238751,-270.10470643,0.00026315,2]
[330113578,1719004240302,-946.81806963,0.00026315,2]
[330113581,1719004240312,-402.44339184,0.00026339,2]
[330113583,1719004240321,-154.79103211,0.00026349,2]
[330113585,1719004240330,-292.86437788,0.00026349,2]
[330113587,1719004240340,-443.35435216,0.00026351,2]
[330113678,1719005083282,514.55,0.00026,60]
[330113682,1719005367081,-556.89166906,0.00014136,2]
[330113683,1719005367120,-428.28012396,0.00014136,2]
[330113684,1719005391992,-576.59510492,0.00014136,2]
[330113685,1719005392057,-402.50681439,0.00014136,2]
[330113686,1719005428284,2128.29563568,9.999e-05,2]
[330113713,1719005432335,-300.0,0.00014135,2]
[330113714,1719005432346,-230.94475,0.00014135,2]
[330113715,1719005432362,-69.05525,0.00014135,2]
[330113716,1719005432372,-187.34475,0.00014136,2]
[330113717,1719005432383,-1704.70027632,0.00014136,2]
[330113718,1719005432394,-2128.29563568,0.00014136,2]
[330113719,1719005432403,-770.09009109,0.00014136,2]
[330113720,1719005432413,-2567.74462911,0.0001414,2]
[330113721,1719005432422,-403.93897647,0.00014569,2]
[330113846,1719005443271,-547.64140303,0.00014569,2]
[330113849,1719005443282,-4402.49490824,0.00014785,2]
[330113886,1719005443644,-455.81107464,0.00014785,2]
[330113888,1719005443655,-304.132991,0.00014785,2]
[330113890,1719005443667,-451.51601229,0.00014785,2]
[330113891,1719005443678,-545.89534636,0.00014785,2]
[330113894,1719005443689,-377.95012059,0.00014785,2]
[330113895,1719005443701,-1769.6155797,0.00014785,2]
[330113897,1719005443712,-1999.86536615,0.00014785,2]
[330113955,1719005447234,-14592.71860103,0.00014785,2]
[330113956,1719005447243,-157.391456,0.00014876,2]
[330113957,1719005447252,-1102.45850324,0.00015,2]
[330113958,1719005447262,-420.0,0.00015483,2]
[330113959,1719005447271,-420.0,0.00015548,2]
[330113960,1719005447280,-490.07682753,0.00016223,2]
[330113961,1719005447289,-687.40904727,0.00016258,2]
[330113963,1719005447298,-687.40904727,0.00016259,2]
[330113965,1719005447307,-402.44339184,0.0001626,2]
[330113967,1719005447317,-417.46398226,0.0001626,7]
[330113969,1719005447326,-402.44339184,0.0001626,2]
[330113971,1719005447336,-626.79430955,0.00016399,2]
[330113973,1719005447345,-397.41948698,0.00016399,2]
[330113974,1719005447355,-401.52259031,0.00016399,2]
[330113976,1719005447368,-154.82195475,0.00016414,2]
[330113979,1719005447378,-516.57466289,0.00017084,2]
[330113981,1719005447388,-516.57466289,0.00017084,2]
[330113982,1719005447398,-210.11835331,0.00017134,2]
[330113983,1719005447407,-351.56903388,0.00018083,2]
[330113984,1719005447416,-20000.0,0.00018183,2]
[330113985,1719005447425,-599.68217567,0.00019178,2]
[330113986,1719005447435,-4837.485,0.0002,2]
[330113987,1719005447447,-292.86437788,0.0002,2]
[330113988,1719005447457,-351.56903384,0.00020227,2]
[330113989,1719005447466,-750.0,0.00021096,2]
[330113990,1719005447475,-160.409011,0.00021096,2]
[330113991,1719005447485,-166.666666,0.00021918,2]
[330113992,1719005447494,-159.95344407,0.00022,2]
[330113993,1719005447504,-878.16482601,0.0002217,2]
[330113994,1719005447513,-150.0,0.00022216,2]
[330113995,1719005447523,-351.56903384,0.00022371,2]
[330113996,1719005447533,-166.666666,0.00022431,2]
[330113997,1719005447542,-1148.18467959,0.00022499,2]
[330113998,1719005447551,-166.666666,0.00022944,2]
[330113999,1719005447560,-166.666666,0.00023456,2]
[330114000,1719005447573,-166.666666,0.00023969,2]